[Event "NJSK 2024 B"]
[Site "Groningen, Netherlands"]
[Date "2024.05.02"]
[Round "6.7"]
[White "Roolvink, William"]
[Black "Lopes, Samuel"]
[Result "1/2-1/2"]
[TimeControl "90min/40moves + 30min + 30sec/move"]
[WhiteElo "1966"]
[BlackElo "1906"]

1. e4 {[%clk 01:30:56]} {[%emt 00:00:04]} c5 {[%clk 01:29:58]} {[%emt
00:01:02]} 2. Nc3 {[%clk 01:30:54]} {[%emt 00:00:31]} Nc6 {[%clk 01:30:05]}
{[%emt 00:00:23]} 3. Bb5 {[%clk 01:31:21]} {[%emt 00:00:04]} Nd4 {[%clk
01:30:10]} {[%emt 00:00:24]} 4. Nf3 {[%clk 01:31:48]} {[%emt 00:00:03]} a6
{[%clk 01:30:18]} {[%emt 00:00:22]} 5. Bd3 {[%clk 01:32:11]} {[%emt 00:00:06]}
Nc6 {[%clk 01:30:30]} {[%emt 00:00:19]} 6. O-O {[%clk 01:32:26]} {[%emt
00:00:14]} d6 {[%clk 01:30:30]} {[%emt 00:00:30]} 7. b3 {[%clk 01:30:34]}
{[%emt 00:02:22]} g6 {[%clk 01:30:10]} {[%emt 00:00:50]} 8. Bb2 {[%clk
01:27:34]} {[%emt 00:03:31]} Bg7 {[%clk 01:29:50]} {[%emt 00:00:50]} 9. Na4
{[%clk 01:23:14]} {[%emt 00:04:50]} e5 {[%emt 00:02:44]} 10. c4 {[%clk
01:21:20]} Nge7 {[%clk 01:28:31]} {[%emt 00:01:59]} 11. Ne1 {[%clk 01:16:40]}
{[%emt 00:05:10]} O-O {[%clk 01:21:38]} {[%emt 00:07:23]} 12. Be2 {[%clk
01:11:48]} {[%emt 00:05:22]} f5 {[%clk 01:16:50]} {[%emt 00:05:18]} 13. Nc3
{[%clk 01:07:47]} {[%emt 00:04:31]} Nd4 {[%clk 01:15:59]} {[%emt 00:01:20]} 14.
exf5 {[%clk 00:45:20]} {[%emt 00:22:57]} Nxe2+ {[%clk 01:15:03]} {[%emt
00:01:26]} 15. Qxe2 {[%clk 00:42:33]} {[%emt 00:03:17]} Nxf5 {[%clk 01:14:58]}
{[%emt 00:00:35]} 16. Nc2 {[%clk 00:42:16]} {[%emt 00:00:47]} Nd4 {[%clk
01:13:26]} {[%emt 00:02:03]} 17. Qd1 {[%clk 00:41:22]} {[%emt 00:01:24]} Bf5
{[%clk 01:03:20]} {[%emt 00:10:36]} 18. d3 {[%clk 00:40:39]} {[%emt 00:01:13]}
Nxc2 {[%clk 00:55:24]} {[%emt 00:08:26]} 19. Qxc2 {[%clk 00:41:06]} {[%emt
00:00:03]} Qd7 {[%clk 00:54:46]} {[%emt 00:01:08]} 20. a4 {[%clk 00:35:53]}
{[%emt 00:05:43]} Rae8 {[%clk 00:53:31]} {[%emt 00:01:46]} 21. Rfe1 {[%clk
00:32:48]} {[%emt 00:03:36]} Rf7 {[%clk 00:52:38]} {[%emt 00:01:23]} 22. a5
{[%clk 00:29:43]} {[%emt 00:03:34]} Ref8 {[%clk 00:52:10]} {[%emt 00:00:57]} 23.
f3 {[%clk 00:18:48]} {[%emt 00:11:25]} Bh6 {[%clk 00:49:35]} {[%emt 00:03:06]}
24. Ne4 {[%clk 00:17:19]} {[%emt 00:01:58]} Bf4 {[%clk 00:45:27]} {[%emt
00:04:39]} 25. Bc1 {[%clk 00:16:27]} {[%emt 00:01:22]} Bxe4 {[%clk 00:44:48]}
{[%emt 00:01:09]} 26. dxe4 {[%clk 00:16:17]} {[%emt 00:00:40]} Qe7 {[%clk
00:43:45]} {[%emt 00:01:33]} 27. Bxf4 {[%clk 00:13:28]} {[%emt 00:03:19]} Rxf4
{[%clk 00:43:55]} {[%emt 00:00:20]} 28. Rad1 {[%clk 00:13:34]} {[%emt
00:00:24]} Qg5 {[%clk 00:40:19]} {[%emt 00:04:06]} 29. Qd2 {[%clk 00:12:17]}
{[%emt 00:01:47]} R8f6 {[%clk 00:39:20]} {[%emt 00:01:29]} 30. Kh1 {[%clk
00:08:07]} {[%emt 00:04:40]} Qh5 {[%clk 00:38:07]} {[%emt 00:01:42]} 31. Rf1
{[%clk 00:03:50]} {[%emt 00:04:48]} Rh4 {[%clk 00:36:41]} {[%emt 00:01:56]} 32.
h3 {[%clk 00:03:58]} {[%emt 00:00:22]} Kg7 {[%clk 00:35:42]} {[%emt 00:01:29]}
33. Kg1 {[%clk 00:04:06]} {[%emt 00:00:22]} Qh6 34. Qxh6+ {[%clk 00:00:34]}
Rxh6 {[%clk 00:34:47]} {[%emt 00:00:08]} 35. Rd5 {[%clk 00:00:40]} {[%emt
00:00:24]} g5 {[%clk 00:34:32]} {[%emt 00:00:45]} 36. Rb1 {[%clk 00:00:46]}
{[%emt 00:00:24]} Rf7 {[%clk 00:34:03]} {[%emt 00:01:00]} 37. Rbd1 {[%clk
00:00:52]} {[%emt 00:00:24]} Rff6 {[%clk 00:34:07]} {[%emt 00:00:27]} 38. Kf2
{[%clk 00:00:54]} {[%emt 00:00:27]} Rhg6 {[%clk 00:34:05]} {[%emt 00:00:32]} 39.
Ke3 {[%clk 00:00:32]} {[%emt 00:00:52]} h5 {[%clk 00:34:15]} {[%emt 00:00:20]}
40. Rb1 {[%clk 00:00:32]} {[%emt 00:00:30]} g4 {[%clk 00:32:33]} {[%emt
00:02:12]} 41. hxg4 {[%clk 00:27:56]} {[%emt 00:03:06]} hxg4 {[%clk 01:02:45]}
{[%emt 00:00:18]} 42. Kf2 {[%clk 00:15:50]} {[%emt 00:12:36]} Rf7 {[%clk
00:47:40]} {[%emt 00:15:35]} 43. Rbd1 {[%clk 00:03:21]} {[%emt 00:12:59]} Rff6
{[%clk 00:46:27]} {[%emt 00:01:43]} 44. R5d3 {[%clk 00:01:55]} {[%emt
00:01:55]} 1/2-1/2

[Event "NJSK 2024 B"]
[Site "Groningen, Netherlands"]
[Date "2024.05.02"]
[Round "6.8"]
[White "Heus, Daan"]
[Black "Fallaux, Storm"]
[Result "1-0"]
[TimeControl "90min/40moves + 30min + 30sec/move"]
[WhiteElo "1921"]
[BlackElo "1905"]

1. c4 {[%clk 01:30:57]} {[%emt 00:00:04]} Nf6 {[%clk 01:30:54]} {[%emt
00:00:07]} 2. d4 {[%clk 01:31:04]} {[%emt 00:00:21]} g6 {[%clk 01:31:16]}
{[%emt 00:00:08]} 3. Nc3 {[%clk 01:31:23]} {[%emt 00:00:12]} Bg7 {[%clk
01:31:39]} {[%emt 00:00:07]} 4. e4 {[%clk 01:31:39]} {[%emt 00:00:14]} d6
{[%clk 01:32:02]} {[%emt 00:00:07]} 5. Nf3 {[%clk 01:30:57]} {[%emt 00:01:12]}
O-O {[%clk 01:32:17]} {[%emt 00:00:15]} 6. Be2 {[%clk 01:29:31]} {[%emt
00:01:57]} e5 {[%clk 01:32:18]} {[%emt 00:00:29]} 7. h3 {[%clk 01:27:26]}
{[%emt 00:02:35]} Nc6 {[%clk 01:32:29]} {[%emt 00:00:18]} 8. d5 {[%clk
01:27:14]} {[%emt 00:00:43]} Ne7 {[%clk 01:32:45]} {[%emt 00:00:14]} 9. Bg5
{[%clk 01:24:09]} {[%emt 00:03:35]} h6 {[%clk 01:32:10]} {[%emt 00:01:05]} 10.
Be3 {[%clk 01:24:24]} {[%emt 00:00:16]} Nh5 {[%clk 01:26:04]} {[%emt 00:06:35]}
11. c5 {[%clk 01:11:47]} {[%emt 00:13:07]} f5 {[%clk 01:24:05]} {[%emt
00:02:29]} 12. cxd6 {[%clk 01:06:13]} {[%emt 00:06:04]} cxd6 {[%clk 01:23:34]}
{[%emt 00:01:01]} 13. Qb3 {[%clk 00:58:32]} {[%emt 00:08:12]} fxe4 {[%clk
01:15:43]} {[%emt 00:08:20]} 14. Nxe4 {[%clk 00:54:45]} {[%emt 00:04:17]} Nf4
{[%clk 01:13:10]} {[%emt 00:03:03]} 15. Bxf4 {[%clk 00:53:07]} {[%emt
00:02:08]} Rxf4 {[%clk 01:13:05]} {[%emt 00:00:35]} 16. Nfd2 {[%clk 00:50:28]}
{[%emt 00:03:09]} Nf5 {[%clk 01:10:23]} {[%emt 00:03:12]} 17. g3 {[%clk
00:44:35]} {[%emt 00:06:24]} Nd4 {[%clk 01:08:36]} {[%emt 00:02:16]} 18. Qd3
{[%clk 00:42:24]} {[%emt 00:02:41]} Rf7 {[%clk 00:50:41]} {[%emt 00:18:24]} 19.
Nc4 {[%clk 00:35:31]} {[%emt 00:07:25]} Bf8 {[%clk 00:45:00]} {[%emt 00:06:10]}
20. Rc1 {[%clk 00:28:06]} {[%emt 00:07:56]} Bf5 {[%clk 00:37:35]} {[%emt
00:07:54]} 21. Bg4 {[%clk 00:23:26]} {[%emt 00:05:10]} Rc8 {[%clk 00:29:27]}
{[%emt 00:08:37]} 22. O-O {[%clk 00:20:47]} {[%emt 00:03:10]} Bxg4 {[%clk
00:23:42]} {[%emt 00:06:15]} 23. hxg4 {[%emt 00:05:15]} Rf3 {[%clk 00:19:33]}
24. Qd1 {[%clk 00:18:11]} {[%emt 00:03:00]} b5 {[%clk 00:17:31]} {[%emt
00:02:32]} 25. Rc3 {[%clk 00:12:54]} {[%emt 00:05:47]} Rxc3 {[%clk 00:11:41]}
{[%emt 00:06:21]} 26. bxc3 {[%clk 00:13:15]} {[%emt 00:00:08]} Rxc4 {[%clk
00:11:41]} {[%emt 00:00:30]} 27. cxd4 {[%clk 00:13:21]} {[%emt 00:00:24]} Rxd4
{[%clk 00:11:55]} {[%emt 00:00:16]} 28. Qf3 {[%clk 00:12:19]} {[%emt 00:01:31]}
Kg7 {[%clk 00:09:51]} {[%emt 00:02:34]} 29. Rc1 {[%clk 00:11:10]} {[%emt
00:01:39]} Be7 {[%clk 00:08:33]} {[%emt 00:01:49]} 30. Rc6 {[%clk 00:09:35]}
{[%emt 00:02:05]} Qd7 {[%clk 00:06:33]} {[%emt 00:02:30]} 31. Nc3 {[%clk
00:07:48]} {[%emt 00:02:18]} b4 {[%clk 00:05:45]} {[%emt 00:01:18]} 32. Nb5
{[%clk 00:07:35]} {[%emt 00:00:42]} Qxg4 {[%clk 00:05:06]} {[%emt 00:01:09]} 33.
Nxd4 {[%clk 00:07:31]} {[%emt 00:00:35]} Qxd4 {[%clk 00:03:44]} {[%emt
00:01:52]} 34. Rc7 {[%clk 00:07:19]} {[%emt 00:00:41]} 1-0

[Event "NJSK 2024 B"]
[Site "Groningen, Netherlands"]
[Date "2024.05.03"]
[Round "7.1"]
[White "Smeets, Kobe"]
[Black "Van Arendonk, Polle"]
[Result "1-0"]
[TimeControl "90min/40moves + 30min + 30sec/move"]
[WhiteElo "2274"]
[BlackElo "1914"]

1. e4 {[%clk 01:30:59]} e6 {[%clk 01:30:55]} {[%emt 00:00:06]} 2. d4 {[%clk
01:31:23]} {[%emt 00:00:05]} d5 {[%clk 01:31:23]} {[%emt 00:00:03]} 3. Nd2
{[%clk 01:31:45]} {[%emt 00:00:08]} c5 {[%clk 01:31:49]} {[%emt 00:00:05]} 4.
exd5 {[%clk 01:32:07]} {[%emt 00:00:07]} exd5 {[%clk 01:32:14]} {[%emt
00:00:06]} 5. Ngf3 {[%clk 01:32:12]} {[%emt 00:00:25]} Nc6 {[%clk 01:32:09]}
{[%emt 00:00:35]} 6. Bb5 {[%clk 01:32:23]} {[%emt 00:00:18]} Bd6 {[%clk
01:31:56]} {[%emt 00:00:43]} 7. O-O {[%clk 01:32:26]} {[%emt 00:00:27]} Nge7
{[%clk 01:32:11]} {[%emt 00:00:15]} 8. dxc5 {[%clk 01:31:54]} {[%emt 00:01:01]}
Bxc5 {[%clk 01:32:35]} {[%emt 00:00:06]} 9. Nb3 {[%clk 01:31:51]} {[%emt
00:00:32]} Bd6 {[%clk 01:33:01]} {[%emt 00:00:05]} 10. h3 {[%clk 01:30:45]}
{[%emt 00:01:36]} O-O {[%clk 01:32:42]} {[%emt 00:00:49]} 11. Re1 {[%clk
01:28:53]} {[%emt 00:02:22]} Qc7 {[%clk 01:24:26]} {[%emt 00:08:47]} 12. c3
{[%clk 01:28:01]} {[%emt 00:01:21]} Bd7 {[%clk 01:17:59]} {[%emt 00:06:57]} 13.
a4 {[%clk 01:24:27]} {[%emt 00:04:04]} Rfe8 {[%clk 01:11:39]} {[%emt 00:06:51]}
14. Bd3 {[%clk 01:22:24]} {[%emt 00:02:33]} h6 {[%clk 00:59:10]} {[%emt
00:12:59]} 15. Nbd4 {[%clk 01:19:07]} {[%emt 00:03:47]} a6 {[%clk 00:52:06]}
{[%emt 00:07:34]} 16. Bc2 {[%clk 01:18:47]} {[%emt 00:00:50]} Nxd4 {[%clk
00:46:19]} {[%emt 00:06:17]} 17. Nxd4 {[%clk 01:18:48]} {[%emt 00:00:28]} Nc6
{[%clk 00:46:22]} {[%emt 00:00:28]} 18. Be3 {[%clk 01:13:03]} {[%emt 00:06:14]}
Nxd4 {[%clk 00:41:02]} {[%emt 00:05:50]} 19. Qxd4 {[%clk 01:11:02]} {[%emt
00:02:31]} Re5 {[%clk 00:36:04]} {[%emt 00:05:29]} 20. Red1 {[%clk 01:08:29]}
{[%emt 00:03:02]} Rh5 {[%clk 00:25:17]} {[%emt 00:11:18]} 21. Qd3 {[%clk
01:04:21]} {[%emt 00:04:38]} Bf5 {[%clk 00:17:20]} {[%emt 00:08:28]} 22. Qe2
{[%clk 00:58:28]} {[%emt 00:06:22]} Bxc2 {[%clk 00:15:35]} {[%emt 00:02:15]} 23.
Qxh5 {[%clk 00:58:43]} {[%emt 00:00:14]} Bxd1 {[%clk 00:16:02]} {[%emt
00:00:03]} 24. Rxd1 {[%clk 00:59:05]} {[%emt 00:00:08]} Rd8 {[%clk 00:15:08]}
{[%emt 00:01:25]} 25. Rxd5 {[%clk 00:56:18]} {[%emt 00:03:17]} Bh2+ {[%clk
00:15:22]} {[%emt 00:00:16]} 26. Kh1 {[%clk 00:56:35]} {[%emt 00:00:13]} Rxd5
{[%clk 00:15:39]} {[%emt 00:00:13]} 27. Qxd5 {[%clk 00:57:03]} {[%emt
00:00:02]} Be5 {[%clk 00:15:31]} {[%emt 00:00:39]} 28. Bc5 {[%clk 00:53:41]}
{[%emt 00:03:52]} h5 {[%clk 00:13:48]} {[%emt 00:02:13]} 29. g3 {[%clk
00:48:56]} {[%emt 00:05:15]} g6 {[%clk 00:12:40]} {[%emt 00:01:38]} 30. Kg2
{[%clk 00:49:06]} {[%emt 00:00:19]} Kg7 {[%clk 00:08:05]} {[%emt 00:05:05]} 31.
Qxe5+ {[%clk 00:25:54]} {[%emt 00:23:42]} Qxe5 {[%clk 00:08:18]} {[%emt
00:00:17]} 32. Bd4 {[%clk 00:26:21]} {[%emt 00:00:03]} Kf6 {[%clk 00:08:00]}
{[%emt 00:00:49]} 33. Bxe5+ {[%clk 00:25:02]} {[%emt 00:01:49]} Kxe5 {[%clk
00:08:23]} {[%emt 00:00:06]} 34. Kf3 {[%clk 00:25:27]} {[%emt 00:00:05]} b6
{[%clk 00:05:36]} {[%emt 00:03:18]} 35. Ke3 {[%clk 00:25:24]} {[%emt 00:00:32]}
f6 {[%clk 00:03:20]} {[%emt 00:02:46]} 36. f4+ {[%clk 00:23:23]} {[%emt
00:02:31]} Kf5 {[%clk 00:01:43]} {[%emt 00:02:07]} 37. b4 {[%clk 00:23:05]}
{[%emt 00:00:47]} g5 {[%clk 00:01:49]} {[%emt 00:00:25]} 38. fxg5 {[%clk
00:23:01]} {[%emt 00:00:34]} fxg5 {[%clk 00:02:12]} {[%emt 00:00:07]} 39. Kd4
{[%clk 00:20:04]} {[%emt 00:03:27]} h4 {[%clk 00:02:19]} {[%emt 00:00:23]} 40.
gxh4 {[%clk 00:19:51]} {[%emt 00:00:43]} gxh4 {[%clk 00:02:42]} {[%emt
00:00:07]} 41. c4 {[%clk 00:19:48]} {[%emt 00:00:33]} Ke6 {[%clk 00:02:28]}
{[%emt 00:00:44]} 42. c5 {[%clk 00:19:54]} {[%emt 00:00:24]} bxc5+ {[%clk
00:01:50]} {[%emt 00:01:08]} 43. Kxc5 {[%clk 00:20:13]} {[%emt 00:00:11]} Kf5
{[%clk 00:01:38]} {[%emt 00:00:43]} 44. b5 {[%clk 00:20:09]} {[%emt 00:00:33]}
axb5 {[%clk 00:01:47]} {[%emt 00:00:22]} 45. axb5 {[%clk 00:20:33]} {[%emt
00:00:06]} 1-0

[Event "NJSK 2024 B"]
[Site "Groningen, Netherlands"]
[Date "2024.05.03"]
[Round "7.2"]
[White "Arnold, Rhys"]
[Black "Madularea, David"]
[Result "1/2-1/2"]
[TimeControl "90min/40moves + 30min + 30sec/move"]
[WhiteElo "2185"]
[BlackElo "2022"]

1. e4 {[%clk 01:30:36]} {[%emt 00:00:23]} c5 {[%clk 01:30:50]} {[%emt
00:00:10]} 2. Nf3 {[%clk 01:31:00]} {[%emt 00:00:06]} d6 {[%clk 01:31:07]}
{[%emt 00:00:14]} 3. Bb5+ {[%clk 01:31:25]} {[%emt 00:00:04]} Bd7 {[%clk
01:31:31]} {[%emt 00:00:06]} 4. Bxd7+ {[%clk 01:31:52]} {[%emt 00:00:04]} Qxd7
{[%emt 00:02:03]} 5. c4 {[%clk 01:30:24]} e5 {[%clk 01:32:15]} {[%emt
00:00:10]} 6. Nc3 {[%clk 01:30:22]} {[%emt 00:00:32]} Nc6 {[%clk 01:32:36]}
{[%emt 00:00:09]} 7. O-O {[%clk 01:30:25]} {[%emt 00:00:27]} g6 {[%clk
01:32:51]} {[%emt 00:00:15]} 8. a3 {[%clk 01:28:41]} {[%emt 00:02:14]} Bg7
{[%clk 01:32:23]} {[%emt 00:00:58]} 9. b4 {[%clk 01:25:19]} {[%emt 00:03:53]}
b6 {[%clk 01:30:59]} {[%emt 00:01:54]} 10. d3 {[%clk 01:21:55]} {[%emt
00:03:53]} Nge7 {[%clk 01:30:15]} {[%emt 00:01:14]} 11. b5 {[%clk 01:19:37]}
{[%emt 00:02:49]} Nd4 {[%clk 01:24:44]} {[%emt 00:06:01]} 12. a4 {[%clk
01:09:21]} {[%emt 00:10:47]} h6 {[%clk 01:20:37]} {[%emt 00:04:36]} 13. a5
{[%clk 01:01:28]} {[%emt 00:08:23]} O-O {[%clk 01:19:14]} {[%emt 00:01:52]} 14.
Nxd4 {[%clk 00:59:58]} {[%emt 00:02:01]} cxd4 {[%clk 01:17:47]} {[%emt
00:01:56]} 15. Ne2 {[%clk 01:00:12]} {[%emt 00:00:17]} f5 {[%clk 01:16:07]}
{[%emt 00:02:11]} 16. f3 {[%clk 01:00:14]} {[%emt 00:00:28]} fxe4 {[%clk
00:52:40]} {[%emt 00:23:56]} 17. fxe4 {[%clk 01:00:20]} {[%emt 00:00:24]} Rxf1+
{[%clk 00:52:49]} {[%emt 00:00:21]} 18. Qxf1 {[%clk 00:59:34]} {[%emt
00:01:16]} Rf8 {[%clk 00:49:18]} {[%emt 00:04:02]} 19. Qe1 {[%clk 00:55:03]}
{[%emt 00:05:01]} Nc8 {[%clk 00:48:17]} {[%emt 00:01:30]} 20. axb6 {[%clk
00:54:47]} {[%emt 00:00:47]} axb6 {[%clk 00:47:14]} {[%emt 00:01:32]} 21. Qg3
{[%clk 00:48:22]} {[%emt 00:06:54]} Kh7 {[%clk 00:44:55]} {[%emt 00:02:49]} 22.
Ba3 {[%clk 00:45:25]} {[%emt 00:03:27]} 1/2-1/2

[Event "NJSK 2024 B"]
[Site "Groningen, Netherlands"]
[Date "2024.05.03"]
[Round "7.3"]
[White "Wink, Luka"]
[Black "Kazarjan, Gachatur"]
[Result "0-1"]
[TimeControl "90min/40moves + 30min + 30sec/move"]
[WhiteElo "2082"]
[BlackElo "2203"]

1. e4 {[%clk 01:30:35]} {[%emt 00:00:23]} c5 {[%clk 01:30:53]} {[%emt
00:00:07]} 2. Nf3 {[%clk 01:31:00]} {[%emt 00:00:06]} d6 {[%clk 01:31:11]}
{[%emt 00:00:12]} 3. d4 {[%clk 01:31:26]} {[%emt 00:00:04]} cxd4 {[%clk
01:31:37]} {[%emt 00:00:05]} 4. Nxd4 {[%clk 01:31:52]} {[%emt 00:00:04]} Nf6
{[%clk 01:31:54]} {[%emt 00:00:12]} 5. Nc3 {[%clk 01:32:18]} {[%emt 00:00:04]}
g6 {[%clk 01:31:48]} {[%emt 00:00:36]} 6. Be3 {[%clk 01:32:38]} {[%emt
00:00:11]} Nc6 {[%clk 01:32:13]} {[%emt 00:00:05]} 7. f3 {[%clk 01:26:24]}
{[%emt 00:06:44]} h5 {[%clk 01:32:16]} {[%emt 00:00:26]} 8. Be2 {[%clk
01:23:40]} {[%emt 00:03:15]} e5 {[%clk 01:29:35]} {[%emt 00:03:11]} 9. Nb3
{[%clk 01:22:21]} {[%emt 00:01:48]} Be6 {[%clk 01:29:07]} {[%emt 00:00:57]} 10.
Qd2 {[%clk 01:20:53]} {[%emt 00:01:58]} a6 {[%clk 01:25:55]} {[%emt 00:03:43]}
11. O-O-O {[%clk 01:19:53]} {[%emt 00:01:30]} Rc8 {[%clk 01:26:06]} {[%emt
00:00:20]} 12. Kb1 {[%clk 01:19:01]} {[%emt 00:01:23]} b5 {[%clk 01:24:39]}
{[%emt 00:01:56]} 13. Bg5 {[%clk 01:06:26]} {[%emt 00:13:05]} Be7 {[%clk
01:05:30]} {[%emt 00:19:39]} 14. h4 {[%clk 01:00:07]} {[%emt 00:06:49]} Qc7
{[%clk 00:36:59]} {[%emt 00:29:00]} 15. Bxf6 {[%clk 00:42:39]} {[%emt
00:17:59]} Bxf6 {[%clk 00:37:05]} {[%emt 00:00:24]} 16. Bxb5 {[%clk 00:42:31]}
{[%emt 00:00:38]} axb5 {[%clk 00:36:15]} {[%emt 00:01:20]} 17. Nxb5 {[%clk
00:42:55]} {[%emt 00:00:06]} Qb8 {[%clk 00:36:21]} {[%emt 00:00:25]} 18. Nxd6+
{[%clk 00:43:01]} {[%emt 00:00:23]} Ke7 {[%clk 00:36:40]} {[%emt 00:00:11]} 19.
Nxc8+ {[%clk 00:42:19]} {[%emt 00:01:13]} Rxc8 {[%clk 00:36:50]} {[%emt
00:00:20]} 20. Qe3 {[%clk 00:39:22]} {[%emt 00:03:27]} Nb4 {[%clk 00:33:19]}
{[%emt 00:04:01]} 21. Rd2 {[%clk 00:36:23]} {[%emt 00:03:30]} Qc7 {[%clk
00:32:06]} {[%emt 00:01:42]} 22. Rc1 {[%clk 00:31:09]} {[%emt 00:05:43]} Bxh4
{[%clk 00:26:28]} {[%emt 00:06:08]} 23. a3 {[%clk 00:30:37]} {[%emt 00:01:03]}
Na6 {[%clk 00:26:01]} {[%emt 00:00:56]} 24. Rcd1 {[%clk 00:28:22]} {[%emt
00:02:45]} Kf6 {[%clk 00:20:21]} {[%emt 00:06:11]} 25. Qd3 {[%clk 00:22:01]}
{[%emt 00:06:52]} Nc5 {[%clk 00:14:30]} {[%emt 00:06:21]} 26. Nxc5 {[%clk
00:21:02]} {[%emt 00:01:29]} Qxc5 {[%clk 00:14:55]} {[%emt 00:00:05]} 27. Qd6
{[%clk 00:16:57]} {[%emt 00:04:35]} Qc4 {[%clk 00:15:12]} {[%emt 00:00:13]} 28.
b3 {[%clk 00:17:01]} {[%emt 00:00:26]} Qc3 {[%clk 00:15:16]} {[%emt 00:00:25]}
29. f4 {[%clk 00:17:02]} {[%emt 00:00:29]} Bg3 {[%clk 00:14:25]} {[%emt
00:01:21]} 30. Qxe5+ {[%clk 00:17:11]} {[%emt 00:00:21]} Qxe5 {[%clk 00:14:49]}
{[%emt 00:00:07]} 31. fxe5+ {[%clk 00:17:37]} {[%emt 00:00:03]} Kxe5 {[%clk
00:15:01]} {[%emt 00:00:18]} 32. c4 {[%clk 00:16:11]} {[%emt 00:01:57]} Rb8
{[%clk 00:14:34]} {[%emt 00:00:57]} 33. Kc2 {[%clk 00:15:51]} {[%emt 00:00:49]}
g5 {[%clk 00:14:19]} {[%emt 00:00:45]} 34. Kc3 {[%clk 00:14:29]} {[%emt
00:01:52]} g4 {[%clk 00:12:54]} {[%emt 00:01:55]} 35. b4 {[%clk 00:13:56]}
{[%emt 00:01:03]} h4 {[%clk 00:12:56]} {[%emt 00:00:28]} 36. c5 {[%clk
00:12:34]} {[%emt 00:01:53]} Ra8 {[%emt 00:02:12]} 37. Ra1 {[%clk 00:11:00]}
Kxe4 {[%clk 00:13:27]} {[%emt 00:00:20]} 38. Re2+ {[%clk 00:11:11]} {[%emt
00:00:19]} Kd5 {[%clk 00:13:25]} {[%emt 00:00:32]} 39. Rd1+ {[%clk 00:09:02]}
{[%emt 00:02:39]} Kc6 {[%clk 00:13:50]} {[%emt 00:00:06]} 40. Rxe6+ {[%clk
00:07:28]} {[%emt 00:02:04]} fxe6 {[%clk 00:14:12]} {[%emt 00:00:08]} 41. Kc4
{[%clk 00:07:51]} {[%emt 00:00:07]} Rxa3 {[%clk 00:14:08]} {[%emt 00:00:34]} 42.
b5+ {[%clk 00:08:02]} {[%emt 00:00:19]} Kc7 {[%clk 00:14:01]} {[%emt 00:00:37]}
43. Kb4 {[%clk 00:06:19]} {[%emt 00:02:14]} Ra2 {[%clk 00:13:03]} {[%emt
00:01:28]} 0-1